[Event "Early-Titled-Tuesday-Blitz-January-23-2024"]
[Site "Chess.com"]
[Date "2024.01.23"]
[Round "1"]
[White "MrTattaglia"]
[Black "Smiechu"]
[Result "1-0"]
[WhiteElo "2860"]
[BlackElo "2476"]
[TimeControl "180+1"]
[EndTime "8:07:07 PST"]
[Termination "MrTattaglia won by checkmate"]

1. e4 {[%clk 0:03:00.9]} 1... c5 {[%clk 0:02:59.7]} 2. Nf3 {[%clk 0:02:54.5]}
2... g6 {[%clk 0:02:59.9]} 3. Nc3 {[%clk 0:02:32.1]} 3... Nc6 {[%clk 0:02:59.1]}
4. h4 {[%clk 0:02:30.2]} 4... h5 {[%clk 0:02:58.4]} 5. Bc4 {[%clk 0:02:28.7]}
5... Bg7 {[%clk 0:02:56.9]} 6. d3 {[%clk 0:02:22.4]} 6... d6 {[%clk 0:02:56.5]}
7. a3 {[%clk 0:02:06.4]} 7... Bg4 {[%clk 0:02:48.7]} 8. Be3 {[%clk 0:01:47.2]}
8... e6 {[%clk 0:02:40.6]} 9. Bb5 {[%clk 0:01:35.7]} 9... Ne7 {[%clk 0:02:37.2]}
10. d4 {[%clk 0:01:29.7]} 10... cxd4 {[%clk 0:02:24.3]} 11. Bxd4 {[%clk
0:01:27.2]} 11... Bxf3 {[%clk 0:01:50.4]} 12. gxf3 {[%clk 0:01:19.9]} 12... Bxd4
{[%clk 0:01:50.4]} 13. Qxd4 {[%clk 0:01:18.9]} 13... O-O {[%clk 0:01:51]} 14.
Qe3 {[%clk 0:01:13.5]} 14... d5 {[%clk 0:01:50.5]} 15. O-O-O {[%clk 0:01:11.5]}
15... d4 {[%clk 0:01:44.6]} 16. Qe2 {[%clk 0:00:57.8]} 16... Qa5 {[%clk
0:01:30]} 17. Na2 {[%clk 0:00:53]} 17... a6 {[%clk 0:01:29.8]} 18. Bxc6 {[%clk
0:00:47.8]} 18... Nxc6 {[%clk 0:01:28]} 19. f4 {[%clk 0:00:46.8]} 19... b5
{[%clk 0:01:24.7]} 20. Rhg1 {[%clk 0:00:43.7]} 20... b4 {[%clk 0:01:23.4]} 21.
Rg5 {[%clk 0:00:31]} 21... e5 {[%clk 0:00:40.9]} 22. Qxh5 {[%clk 0:00:28.3]}
22... Kg7 {[%clk 0:00:22]} 23. Rdg1 {[%clk 0:00:25.9]} 23... Ne7 {[%clk
0:00:18]} 24. Nxb4 {[%clk 0:00:19.8]} 24... Rac8 {[%clk 0:00:17.9]} 25. Qg4
{[%clk 0:00:19.1]} 25... d3 {[%clk 0:00:16.1]} 26. c3 {[%clk 0:00:17.4]} 26...
Qc5 {[%clk 0:00:13.9]} 27. f5 {[%clk 0:00:17.3]} 27... Qxf2 {[%clk 0:00:13.5]}
28. fxg6 {[%clk 0:00:17.3]} 28... f6 {[%clk 0:00:10.1]} 29. Rh5 {[%clk
0:00:17.2]} 29... Qe3+ {[%clk 0:00:10.2]} 30. Kb1 {[%clk 0:00:16.5]} 30... Rh8
{[%clk 0:00:10.3]} 31. Rh7+ {[%clk 0:00:16.6]} 31... Kg8 {[%clk 0:00:05.3]} 32.
Qe6+ {[%clk 0:00:16.2]} 32... Kf8 {[%clk 0:00:04.6]} 33. Qf7# {[%clk 0:00:17.1]}
1-0

[Event "Early-Titled-Tuesday-Blitz-January-23-2024"]
[Site "Chess.com"]
[Date "2024.01.23"]
[Round "1"]
[White "sina101"]
[Black "Duhless"]
[Result "0-1"]
[WhiteElo "2537"]
[BlackElo "3132"]
[TimeControl "180+1"]
[EndTime "8:07:09 PST"]
[Termination "Duhless won on time"]

1. d4 {[%clk 0:02:59]} 1... Nf6 {[%clk 0:02:41.5]} 2. c4 {[%clk 0:02:58.4]} 2...
e6 {[%clk 0:02:41.1]} 3. Nc3 {[%clk 0:02:58.3]} 3... d5 {[%clk 0:02:36.5]} 4.
cxd5 {[%clk 0:02:57.9]} 4... exd5 {[%clk 0:02:36.4]} 5. Bg5 {[%clk 0:02:57.4]}
5... c6 {[%clk 0:02:36.2]} 6. e3 {[%clk 0:02:55.8]} 6... Bd6 {[%clk 0:02:35.8]}
7. Bd3 {[%clk 0:02:54.7]} 7... O-O {[%clk 0:02:34.4]} 8. Nge2 {[%clk 0:02:53.5]}
8... Re8 {[%clk 0:02:33.5]} 9. Qc2 {[%clk 0:02:49.7]} 9... h6 {[%clk 0:02:32.7]}
10. Bh4 {[%clk 0:02:48]} 10... Be6 {[%clk 0:02:33.4]} 11. Bg3 {[%clk 0:02:18.9]}
11... a5 {[%clk 0:02:15.7]} 12. O-O {[%clk 0:02:15.9]} 12... Na6 {[%clk
0:02:14.9]} 13. a3 {[%clk 0:02:15.1]} 13... Nc7 {[%clk 0:02:13.8]} 14. Rad1
{[%clk 0:01:47.9]} 14... Bg4 {[%clk 0:02:08]} 15. f3 {[%clk 0:01:30.1]} 15...
Bh5 {[%clk 0:02:05]} 16. Bxd6 {[%clk 0:01:08.9]} 16... Qxd6 {[%clk 0:02:04]} 17.
e4 {[%clk 0:01:08.4]} 17... dxe4 {[%clk 0:01:57.3]} 18. fxe4 {[%clk 0:01:09.3]}
18... Bxe2 {[%clk 0:01:57.2]} 19. Nxe2 {[%clk 0:01:08]} 19... Qe7 {[%clk
0:01:50.3]} 20. Ng3 {[%clk 0:00:56.7]} 20... g6 {[%clk 0:01:50.2]} 21. Qf2
{[%clk 0:00:52.2]} 21... Kg7 {[%clk 0:01:44]} 22. e5 {[%clk 0:00:38.3]} 22...
Nfd5 {[%clk 0:01:43.6]} 23. Ne4 {[%clk 0:00:37.4]} 23... Ne6 {[%clk 0:01:39.4]}
24. Nf6 {[%clk 0:00:34]} 24... Red8 {[%clk 0:01:36.5]} 25. Qg3 {[%clk
0:00:28.5]} 25... Nxd4 {[%clk 0:01:31]} 26. Kh1 {[%clk 0:00:28.8]} 26... Qe6
{[%clk 0:01:20.6]} 27. Bxg6 {[%clk 0:00:19]} 27... fxg6 {[%clk 0:01:16.1]} 28.
Rxd4 {[%clk 0:00:19.3]} 28... Ne7 {[%clk 0:01:01.6]} 29. Rg4 {[%clk 0:00:17.5]}
29... Rd2 {[%clk 0:00:56.7]} 30. Ne4 {[%clk 0:00:15.6]} 30... Rxb2 {[%clk
0:00:53.2]} 31. h3 {[%clk 0:00:11.8]} 31... Nf5 {[%clk 0:00:48.3]} 32. Qc3
{[%clk 0:00:07.7]} 32... Re2 {[%clk 0:00:42.6]} 33. Qd3 {[%clk 0:00:04.3]} 33...
Re3 {[%clk 0:00:40.3]} 34. Qc4 {[%clk 0:00:02.4]} 34... Qxc4 {[%clk 0:00:39]}
35. Rxf5 {[%clk 0:00:02.4]} 35... Rxe4 {[%clk 0:00:37.9]} 0-1

[Event "Early-Titled-Tuesday-Blitz-January-23-2024"]
[Site "Chess.com"]
[Date "2024.01.23"]
[Round "1"]
[White "Road2GM3000"]
[Black "GMKrikor"]
[Result "0-1"]
[WhiteElo "2445"]
[BlackElo "2797"]
[TimeControl "180+1"]
[EndTime "8:07:10 PST"]
[Termination "GMKrikor won on time"]

1. d4 {[%clk 0:03:00.9]} 1... Nf6 {[%clk 0:02:59.4]} 2. c4 {[%clk 0:02:55.3]}
2... g6 {[%clk 0:02:58.1]} 3. Nc3 {[%clk 0:02:43.3]} 3... d5 {[%clk 0:02:58.1]}
4. Bg5 {[%clk 0:02:42.3]} 4... Bg7 {[%clk 0:02:57.7]} 5. e3 {[%clk 0:02:39.4]}
5... dxc4 {[%clk 0:02:51.2]} 6. Bxc4 {[%clk 0:02:30.6]} 6... c5 {[%clk
0:02:51.2]} 7. Nf3 {[%clk 0:02:21.9]} 7... cxd4 {[%clk 0:02:50.1]} 8. Qxd4
{[%clk 0:02:17.8]} 8... O-O {[%clk 0:02:48.3]} 9. Qxd8 {[%clk 0:02:14.3]} 9...
Rxd8 {[%clk 0:02:49.2]} 10. O-O {[%clk 0:02:14.1]} 10... Nc6 {[%clk 0:02:45.4]}
11. Rfd1 {[%clk 0:02:13.6]} 11... Bf5 {[%clk 0:02:39.2]} 12. h3 {[%clk
0:02:09.5]} 12... Ne4 {[%clk 0:02:33.4]} 13. Rxd8+ {[%clk 0:01:30.6]} 13... Rxd8
{[%clk 0:02:31.7]} 14. Rc1 {[%clk 0:01:20.6]} 14... Bxc3 {[%clk 0:01:36]} 15.
bxc3 {[%clk 0:01:19.7]} 15... Nxg5 {[%clk 0:01:36.3]} 16. Nxg5 {[%clk
0:01:19.3]} 16... Ne5 {[%clk 0:01:37.1]} 17. Bb3 {[%clk 0:01:09.1]} 17... h6
{[%clk 0:01:36.6]} 18. Nf3 {[%clk 0:00:24.2]} 18... Nxf3+ {[%clk 0:01:35.6]} 19.
gxf3 {[%clk 0:00:25.1]} 19... Bxh3 {[%clk 0:01:36]} 20. Kh2 {[%clk 0:00:20.8]}
20... Bc8 {[%clk 0:01:26]} 21. Kg3 {[%clk 0:00:21.4]} 21... Kg7 {[%clk
0:01:24.3]} 22. c4 {[%clk 0:00:19.1]} 22... Rd7 {[%clk 0:01:10.4]} 23. Kf4
{[%clk 0:00:14.9]} 23... Kf6 {[%clk 0:01:07.5]} 24. e4 {[%clk 0:00:13.3]} 24...
e5+ {[%clk 0:01:05.2]} 25. Ke3 {[%clk 0:00:13.8]} 25... Rc7 {[%clk 0:01:04.3]}
26. c5 {[%clk 0:00:14]} 26... h5 {[%clk 0:00:37.9]} 27. Bd5 {[%clk 0:00:13.9]}
27... h4 {[%clk 0:00:38.6]} 28. f4 {[%clk 0:00:12.4]} 28... exf4+ {[%clk
0:00:38.3]} 29. Kxf4 {[%clk 0:00:13.3]} 29... g5+ {[%clk 0:00:39]} 30. Kf3
{[%clk 0:00:11.3]} 30... Ke5 {[%clk 0:00:38]} 31. Ke3 {[%clk 0:00:09.6]} 31...
f5 {[%clk 0:00:34.8]} 32. c6 {[%clk 0:00:06.8]} 32... f4+ {[%clk 0:00:26.6]} 33.
Kd3 {[%clk 0:00:05.7]} 33... bxc6 {[%clk 0:00:26.5]} 34. Bxc6 {[%clk 0:00:03.7]}
34... Kd6 {[%clk 0:00:26.6]} 35. Rg1 {[%clk 0:00:01.8]} 35... Kxc6 {[%clk
0:00:24.1]} 36. Rxg5 {[%clk 0:00:02.5]} 36... Rh7 {[%clk 0:00:24]} 0-1

[Event "Early-Titled-Tuesday-Blitz-January-23-2024"]
[Site "Chess.com"]
[Date "2024.01.23"]
[Round "1"]
[White "The_Straightforward_Rook"]
[Black "cthake"]
[Result "1-0"]
[WhiteElo "2542"]
[BlackElo "1833"]
[TimeControl "180+1"]
[EndTime "8:07:12 PST"]
[Termination "The_Straightforward_Rook won on time"]

1. e4 {[%clk 0:03:00.9]} 1... c5 {[%clk 0:02:57.3]} 2. c3 {[%clk 0:02:59.7]}
2... e6 {[%clk 0:02:55.8]} 3. d4 {[%clk 0:02:59]} 3... d5 {[%clk 0:02:56]} 4. e5
{[%clk 0:02:59.6]} 4... Nc6 {[%clk 0:02:55.2]} 5. Nf3 {[%clk 0:02:59.9]} 5...
Bd7 {[%clk 0:02:54.7]} 6. Be2 {[%clk 0:02:59.7]} 6... Qb6 {[%clk 0:02:54.7]} 7.
O-O {[%clk 0:02:57.4]} 7... Rc8 {[%clk 0:02:48.8]} 8. Na3 {[%clk 0:02:53.8]}
8... a6 {[%clk 0:02:46.1]} 9. Nc2 {[%clk 0:02:52.7]} 9... Be7 {[%clk 0:02:41.2]}
10. a3 {[%clk 0:02:46.3]} 10... f5 {[%clk 0:02:34.7]} 11. exf6 {[%clk
0:02:19.4]} 11... Nxf6 {[%clk 0:02:34.3]} 12. dxc5 {[%clk 0:02:14.5]} 12... Bxc5
{[%clk 0:02:29.8]} 13. b4 {[%clk 0:02:14.5]} 13... Be7 {[%clk 0:02:24.5]} 14.
Be3 {[%clk 0:02:14.4]} 14... Qd8 {[%clk 0:02:22.5]} 15. c4 {[%clk 0:02:13.1]}
15... O-O {[%clk 0:02:15.1]} 16. c5 {[%clk 0:01:58.7]} 16... Ne4 {[%clk
0:02:04.3]} 17. Qd3 {[%clk 0:01:48.1]} 17... Bf6 {[%clk 0:02:00.2]} 18. Rac1
{[%clk 0:01:41.1]} 18... Ne5 {[%clk 0:01:55.3]} 19. Nxe5 {[%clk 0:01:40.3]}
19... Bxe5 {[%clk 0:01:55.4]} 20. Nd4 {[%clk 0:01:35.6]} 20... Qh4 {[%clk
0:01:37.5]} 21. g3 {[%clk 0:01:33.5]} 21... Nxg3 {[%clk 0:01:13.6]} 22. fxg3
{[%clk 0:01:34.4]} 22... Bxg3 {[%clk 0:01:13.4]} 23. Rxf8+ {[%clk 0:00:54.9]}
23... Rxf8 {[%clk 0:01:12.6]} 24. Nf3 {[%clk 0:00:55.8]} 24... Rxf3 {[%clk
0:01:03.8]} 25. Bxf3 {[%clk 0:00:56.7]} 25... Qxh2+ {[%clk 0:00:59.1]} 26. Kf1
{[%clk 0:00:57.2]} 26... Bb5 {[%clk 0:00:56.4]} 27. Qxb5 {[%clk 0:00:49.9]}
27... axb5 {[%clk 0:00:56.1]} 28. c6 {[%clk 0:00:50.7]} 28... bxc6 {[%clk
0:00:55.7]} 29. Rxc6 {[%clk 0:00:51.6]} 29... Qh3+ {[%clk 0:00:47.1]} 30. Ke2
{[%clk 0:00:50.4]} 30... Qh2+ {[%clk 0:00:44.7]} 31. Kf1 {[%clk 0:00:48.8]}
31... Bc7 {[%clk 0:00:38.4]} 32. Rxe6 {[%clk 0:00:44.7]} 32... Qg3 {[%clk
0:00:34.4]} 33. Bxd5 {[%clk 0:00:42.2]} 33... Kf8 {[%clk 0:00:31.1]} 34. Bc5+
{[%clk 0:00:40.7]} 34... Kf7 {[%clk 0:00:05]} 35. Re3+ {[%clk 0:00:41.1]} 35...
Kg6 {[%clk 0:00:02.8]} 36. Rxg3+ {[%clk 0:00:41.6]} 36... Bxg3 {[%clk
0:00:03.5]} 37. Bc6 {[%clk 0:00:42]} 37... Be5 {[%clk 0:00:02]} 38. Bxb5 {[%clk
0:00:41.9]} 38... Bb2 {[%clk 0:00:02.6]} 39. a4 {[%clk 0:00:42.4]} 39... Bc3
{[%clk 0:00:02.4]} 40. a5 {[%clk 0:00:42.5]} 40... Be5 {[%clk 0:00:02.3]} 41. a6
{[%clk 0:00:42.8]} 41... Bb8 {[%clk 0:00:01.4]} 42. a7 {[%clk 0:00:43.3]} 1-0

[Event "Early-Titled-Tuesday-Blitz-January-23-2024"]
[Site "Chess.com"]
[Date "2024.01.23"]
[Round "1"]
[White "JiaHaoxiang"]
[Black "cukus"]
[Result "1-0"]
[WhiteElo "2628"]
[BlackElo "2301"]
[TimeControl "180+1"]
[EndTime "8:07:13 PST"]
[Termination "JiaHaoxiang won on time"]

1. d4 {[%clk 0:02:59.8]} 1... d5 {[%clk 0:02:59]} 2. Bf4 {[%clk 0:02:57.7]} 2...
c5 {[%clk 0:02:53.1]} 3. e3 {[%clk 0:02:56.3]} 3... Nc6 {[%clk 0:02:52.1]} 4.
Nf3 {[%clk 0:02:54.5]} 4... Nf6 {[%clk 0:02:51.7]} 5. c3 {[%clk 0:02:53.4]} 5...
Qb6 {[%clk 0:02:51.7]} 6. Qb3 {[%clk 0:02:41.5]} 6... c4 {[%clk 0:02:47.8]} 7.
Qc2 {[%clk 0:02:39.8]} 7... Bf5 {[%clk 0:02:40.7]} 8. Qc1 {[%clk 0:02:40]} 8...
e6 {[%clk 0:02:40.1]} 9. h3 {[%clk 0:02:40.4]} 9... h6 {[%clk 0:02:40]} 10. g4
{[%clk 0:02:40]} 10... Bh7 {[%clk 0:02:35]} 11. Nbd2 {[%clk 0:02:39.8]} 11...
Be7 {[%clk 0:02:34.7]} 12. Be2 {[%clk 0:02:39.9]} 12... O-O {[%clk 0:02:34.3]}
13. O-O {[%clk 0:02:39.3]} 13... Rfc8 {[%clk 0:02:34]} 14. Ne5 {[%clk
0:02:37.7]} 14... Qd8 {[%clk 0:02:31.7]} 15. Qe1 {[%clk 0:02:28.9]} 15... b5
{[%clk 0:02:30.3]} 16. f3 {[%clk 0:02:28.3]} 16... b4 {[%clk 0:02:28.9]} 17. Qg3
{[%clk 0:02:27.9]} 17... a5 {[%clk 0:02:18.6]} 18. h4 {[%clk 0:02:20.3]} 18...
a4 {[%clk 0:02:11.5]} 19. a3 {[%clk 0:02:08.1]} 19... bxc3 {[%clk 0:02:03.8]}
20. bxc3 {[%clk 0:02:05.2]} 20... Na5 {[%clk 0:01:58.9]} 21. g5 {[%clk
0:01:46.8]} 21... hxg5 {[%clk 0:01:57.5]} 22. hxg5 {[%clk 0:01:45]} 22... Nh5
{[%clk 0:01:57.3]} 23. Qh4 {[%clk 0:01:42.4]} 23... Nxf4 {[%clk 0:01:55.7]} 24.
exf4 {[%clk 0:01:42]} 24... Bf5 {[%clk 0:00:50.1]} 25. Kf2 {[%clk 0:01:38.3]}
25... f6 {[%clk 0:00:49.9]} 26. g6 {[%clk 0:01:29.8]} 26... Bxg6 {[%clk
0:00:36.2]} 27. Nxg6 {[%clk 0:01:29.2]} 27... Nb3 {[%clk 0:00:32]} 28. Ra2
{[%clk 0:01:28.1]} 28... Nxd2 {[%clk 0:00:30.6]} 29. Rxd2 {[%clk 0:01:26.9]}
29... Bxa3 {[%clk 0:00:30.4]} 30. Rg1 {[%clk 0:01:20.6]} 30... Bf8 {[%clk
0:00:26.2]} 31. Qh8+ {[%clk 0:01:04.1]} 31... Kf7 {[%clk 0:00:26]} 32. Qh5
{[%clk 0:01:05]} 32... Kg8 {[%clk 0:00:23.9]} 33. f5 {[%clk 0:00:55]} 33... Rc6
{[%clk 0:00:15.2]} 34. fxe6 {[%clk 0:00:53.2]} 34... Rxe6 {[%clk 0:00:15.1]} 35.
Qh8+ {[%clk 0:00:48.2]} 35... Kf7 {[%clk 0:00:14.9]} 36. Nf4 {[%clk 0:00:48.2]}
36... Rd6 {[%clk 0:00:12.3]} 37. Qh5+ {[%clk 0:00:45.8]} 37... Kg8 {[%clk
0:00:12.2]} 38. Bd1 {[%clk 0:00:45.9]} 38... a3 {[%clk 0:00:11.6]} 39. Bc2
{[%clk 0:00:46.2]} 39... f5 {[%clk 0:00:06.2]} 40. Bxf5 {[%clk 0:00:45.5]} 40...
Rf6 {[%clk 0:00:05.2]} 41. Bh7+ {[%clk 0:00:45.2]} 1-0

[Event "Early-Titled-Tuesday-Blitz-January-23-2024"]
[Site "Chess.com"]
[Date "2024.01.23"]
[Round "1"]
[White "ural58"]
[Black "Flawless_Fighter"]
[Result "0-1"]
[WhiteElo "2414"]
[BlackElo "2717"]
[TimeControl "180+1"]
[EndTime "8:07:15 PST"]
[Termination "Flawless_Fighter won by resignation"]

1. e4 {[%clk 0:02:39.4]} 1... c5 {[%clk 0:02:54.3]} 2. b3 {[%clk 0:02:38.2]}
2... Nc6 {[%clk 0:02:52.5]} 3. Bb2 {[%clk 0:02:37.9]} 3... Nf6 {[%clk
0:02:50.8]} 4. e5 {[%clk 0:02:37.8]} 4... Nd5 {[%clk 0:02:50.8]} 5. Nf3 {[%clk
0:02:37.9]} 5... g6 {[%clk 0:02:50]} 6. Ng5 {[%clk 0:02:37.4]} 6... Bg7 {[%clk
0:02:48]} 7. Qf3 {[%clk 0:02:28.1]} 7... f6 {[%clk 0:02:44.8]} 8. Qxd5 {[%clk
0:02:05.1]} 8... fxg5 {[%clk 0:02:44.7]} 9. Bc4 {[%clk 0:01:59.7]} 9... e6
{[%clk 0:02:44.8]} 10. Qxc5 {[%clk 0:01:59.5]} 10... b6 {[%clk 0:02:33.8]} 11.
Qe3 {[%clk 0:01:58.3]} 11... O-O {[%clk 0:02:31.7]} 12. O-O {[%clk 0:01:52.5]}
12... Bb7 {[%clk 0:02:29.1]} 13. Na3 {[%clk 0:01:48.6]} 13... d5 {[%clk
0:02:20]} 14. Bb5 {[%clk 0:01:31.8]} 14... a6 {[%clk 0:02:18.5]} 15. Bxc6 {[%clk
0:01:31.2]} 15... Bxc6 {[%clk 0:02:19.4]} 16. d4 {[%clk 0:01:29.5]} 16... Rf5
{[%clk 0:02:15.5]} 17. c3 {[%clk 0:01:27.8]} 17... Qe7 {[%clk 0:02:12.4]} 18.
Nc2 {[%clk 0:01:27.3]} 18... Raf8 {[%clk 0:02:11.8]} 19. Ba3 {[%clk 0:01:25.1]}
19... Qe8 {[%clk 0:02:09.8]} 20. Bxf8 {[%clk 0:01:24.9]} 20... Qxf8 {[%clk
0:02:10.7]} 21. a4 {[%clk 0:01:23.6]} 21... g4 {[%clk 0:02:07.4]} 22. b4 {[%clk
0:01:20.3]} 22... Be8 {[%clk 0:02:00.2]} 23. Qe2 {[%clk 0:01:19.4]} 23... h5
{[%clk 0:01:59.8]} 24. Qxa6 {[%clk 0:01:17.2]} 24... h4 {[%clk 0:01:53.3]} 25.
Qd3 {[%clk 0:01:16.8]} 25... h3 {[%clk 0:01:51.1]} 26. g3 {[%clk 0:01:16.6]}
26... Rf3 {[%clk 0:01:48.2]} 27. Qd2 {[%clk 0:01:16.7]} 27... Qf5 {[%clk
0:01:46.3]} 28. Rfe1 {[%clk 0:00:50.8]} 28... Rd3 {[%clk 0:01:36.1]} 29. Qe2
{[%clk 0:00:47.3]} 29... Rxc3 {[%clk 0:01:17.8]} 30. Ra2 {[%clk 0:00:38]} 30...
Bh6 {[%clk 0:01:03.5]} 31. a5 {[%clk 0:00:36.8]} 31... bxa5 {[%clk 0:00:55.4]}
32. bxa5 {[%clk 0:00:36.4]} 32... Rb3 {[%clk 0:00:39.2]} 33. a6 {[%clk
0:00:19.2]} 33... Bb5 {[%clk 0:00:39.3]} 34. a7 {[%clk 0:00:19.4]} 34... Bxe2
{[%clk 0:00:38.9]} 35. a8=Q+ {[%clk 0:00:20.1]} 35... Kh7 {[%clk 0:00:39.2]} 36.
Ra7+ {[%clk 0:00:19.9]} 36... Bg7 {[%clk 0:00:39.1]} 37. Rxg7+ {[%clk
0:00:19.5]} 37... Kxg7 {[%clk 0:00:39]} 38. Qa7+ {[%clk 0:00:19.4]} 38... Kh6
{[%clk 0:00:38.6]} 39. Qa1 {[%clk 0:00:18.4]} 39... Qf3 {[%clk 0:00:32.1]} 40.
Qc1+ {[%clk 0:00:17.3]} 40... Kh7 {[%clk 0:00:30.5]} 41. Ne3 {[%clk 0:00:13.7]}
41... Rxe3 {[%clk 0:00:30.3]} 0-1

[Event "Early-Titled-Tuesday-Blitz-January-23-2024"]
[Site "Chess.com"]
[Date "2024.01.23"]
[Round "1"]
[White "GaiozNigalidze"]
[Black "Bkmzzzzz"]
[Result "1-0"]
[WhiteElo "2705"]
[BlackElo "2398"]
[TimeControl "180+1"]
[EndTime "8:07:15 PST"]
[Termination "GaiozNigalidze won by checkmate"]

1. d4 {[%clk 0:03:00.9]} 1... d5 {[%clk 0:02:58.8]} 2. c4 {[%clk 0:03:00.5]}
2... dxc4 {[%clk 0:02:59.7]} 3. Nf3 {[%clk 0:02:59.5]} 3... a6 {[%clk
0:02:59.9]} 4. e3 {[%clk 0:02:48.9]} 4... Nf6 {[%clk 0:02:59.4]} 5. Bxc4 {[%clk
0:02:48.5]} 5... e6 {[%clk 0:02:59.7]} 6. O-O {[%clk 0:02:48.8]} 6... c5 {[%clk
0:02:59]} 7. dxc5 {[%clk 0:02:45.8]} 7... Bxc5 {[%clk 0:02:57.5]} 8. Qxd8+
{[%clk 0:02:44.9]} 8... Kxd8 {[%clk 0:02:58.4]} 9. b3 {[%clk 0:02:42.5]} 9...
Ke7 {[%clk 0:02:56.8]} 10. Bb2 {[%clk 0:02:42.7]} 10... b5 {[%clk 0:02:56.6]}
11. Be2 {[%clk 0:02:42.4]} 11... Bb7 {[%clk 0:02:57.2]} 12. a4 {[%clk
0:02:39.3]} 12... bxa4 {[%clk 0:02:54.4]} 13. Rxa4 {[%clk 0:02:29.6]} 13... Nbd7
{[%clk 0:02:53.5]} 14. Nbd2 {[%clk 0:02:26.6]} 14... Nb6 {[%clk 0:02:51.9]} 15.
Ra2 {[%clk 0:02:25.3]} 15... Rhd8 {[%clk 0:02:52]} 16. Rfa1 {[%clk 0:02:22.1]}
16... Bb4 {[%clk 0:02:47.9]} 17. Bxa6 {[%clk 0:01:51.1]} 17... Bxa6 {[%clk
0:00:20.5]} 18. Rxa6 {[%clk 0:01:49.1]} 18... Rxa6 {[%clk 0:00:20.9]} 19. Rxa6
{[%clk 0:01:46.9]} 19... Bxd2 {[%clk 0:00:21.6]} 20. Rxb6 {[%clk 0:01:29.5]}
20... Bc1 {[%clk 0:00:19.8]} 21. Bd4 {[%clk 0:00:54.7]} 21... Nd5 {[%clk
0:00:19.6]} 22. Rb7+ {[%clk 0:00:53.4]} 22... Kf8 {[%clk 0:00:20.3]} 23. b4
{[%clk 0:00:37.9]} 23... f6 {[%clk 0:00:19.9]} 24. b5 {[%clk 0:00:32.9]} 24...
Ba3 {[%clk 0:00:19.7]} 25. g4 {[%clk 0:00:19.9]} 25... e5 {[%clk 0:00:19.7]} 26.
Ba7 {[%clk 0:00:20.1]} 26... Rc8 {[%clk 0:00:17.5]} 27. Nd2 {[%clk 0:00:15.1]}
27... Rc2 {[%clk 0:00:16.8]} 28. Ne4 {[%clk 0:00:14.9]} 28... Rb2 {[%clk
0:00:16.9]} 29. Kg2 {[%clk 0:00:13.5]} 29... h6 {[%clk 0:00:16.5]} 30. Kf3
{[%clk 0:00:13.7]} 30... Nb4 {[%clk 0:00:12.8]} 31. Bc5+ {[%clk 0:00:11.7]}
31... Kg8 {[%clk 0:00:12.6]} 32. Rb8+ {[%clk 0:00:11.6]} 32... Kh7 {[%clk
0:00:12]} 33. Rb7 {[%clk 0:00:12.1]} 33... Kg6 {[%clk 0:00:11.7]} 34. h4 {[%clk
0:00:12.5]} 34... f5 {[%clk 0:00:11.6]} 35. h5+ {[%clk 0:00:12.3]} 35... Kh7
{[%clk 0:00:11.1]} 36. Nf6+ {[%clk 0:00:12.7]} 36... Kh8 {[%clk 0:00:11.4]} 37.
Rb8# {[%clk 0:00:13.3]} 1-0

[Event "Early-Titled-Tuesday-Blitz-January-23-2024"]
[Site "Chess.com"]
[Date "2024.01.23"]
[Round "1"]
[White "GatoRojo150"]
[Black "Me_ch_an"]
[Result "1/2-1/2"]
[WhiteElo "2604"]
[BlackElo "2285"]
[TimeControl "180+1"]
[EndTime "8:07:16 PST"]
[Termination "Game drawn by repetition"]

1. e4 {[%clk 0:03:00.9]} 1... c5 {[%clk 0:02:59.8]} 2. Nf3 {[%clk 0:03:00.5]}
2... Nc6 {[%clk 0:02:59]} 3. Nc3 {[%clk 0:03:00.9]} 3... a6 {[%clk 0:02:54.1]}
4. d4 {[%clk 0:03:00.7]} 4... cxd4 {[%clk 0:02:54.6]} 5. Nxd4 {[%clk 0:03:01.6]}
5... e6 {[%clk 0:02:42.7]} 6. Nb3 {[%clk 0:02:57.9]} 6... Nf6 {[%clk 0:02:38.7]}
7. Bd3 {[%clk 0:02:57.9]} 7... Qc7 {[%clk 0:02:38.3]} 8. f4 {[%clk 0:02:58.2]}
8... d6 {[%clk 0:02:38]} 9. Qf3 {[%clk 0:02:58]} 9... b5 {[%clk 0:02:35.5]} 10.
Bd2 {[%clk 0:02:58.3]} 10... Bb7 {[%clk 0:02:35.4]} 11. O-O {[%clk 0:02:58.6]}
11... Be7 {[%clk 0:02:35.2]} 12. Rae1 {[%clk 0:02:58.5]} 12... O-O {[%clk
0:02:34.9]} 13. Qh3 {[%clk 0:02:58.6]} 13... Nb4 {[%clk 0:01:52.8]} 14. Nxb5
{[%clk 0:02:53.5]} 14... axb5 {[%clk 0:01:45.8]} 15. Bxb4 {[%clk 0:02:53.2]}
15... e5 {[%clk 0:01:43.7]} 16. a3 {[%clk 0:02:50.3]} 16... Rfe8 {[%clk
0:01:31.5]} 17. f5 {[%clk 0:02:40.8]} 17... d5 {[%clk 0:01:26]} 18. Bxe7 {[%clk
0:02:33]} 18... Rxe7 {[%clk 0:01:25.2]} 19. exd5 {[%clk 0:02:33.4]} 19... Bxd5
{[%clk 0:01:24.4]} 20. Kh1 {[%clk 0:02:10.1]} 20... e4 {[%clk 0:01:12.7]} 21.
Bxb5 {[%clk 0:01:43.4]} 21... Qxc2 {[%clk 0:01:12.2]} 22. Nc1 {[%clk 0:01:14.2]}
22... Qxb2 {[%clk 0:01:10.6]} 23. a4 {[%clk 0:01:14.4]} 23... Rc8 {[%clk
0:01:02.7]} 24. Ne2 {[%clk 0:00:44]} 24... Rc2 {[%clk 0:00:55.1]} 25. Rb1 {[%clk
0:00:37.2]} 25... Qe5 {[%clk 0:00:50.9]} 26. Qe3 {[%clk 0:00:19.7]} 26... Qxh2+
{[%clk 0:00:41.2]} 27. Kxh2 {[%clk 0:00:19.3]} 27... Ng4+ {[%clk 0:00:41.6]} 28.
Kg3 {[%clk 0:00:18.4]} 28... Nxe3 {[%clk 0:00:42.5]} 29. Rfc1 {[%clk 0:00:18.9]}
29... Rxc1 {[%clk 0:00:22.1]} 30. Rxc1 {[%clk 0:00:19.8]} 30... h6 {[%clk
0:00:19.5]} 31. Kf4 {[%clk 0:00:19.7]} 31... Nxg2+ {[%clk 0:00:19.6]} 32. Kg3
{[%clk 0:00:18.6]} 32... Ne3 {[%clk 0:00:19.8]} 33. Rc8+ {[%clk 0:00:18.6]}
33... Kh7 {[%clk 0:00:19.6]} 34. Kf4 {[%clk 0:00:19.5]} 34... Ng2+ {[%clk
0:00:17.8]} 35. Kg3 {[%clk 0:00:19.7]} 35... Ne3 {[%clk 0:00:18]} 36. Kf4 {[%clk
0:00:20.3]} 36... Ng2+ {[%clk 0:00:10.8]} 37. Kg3 {[%clk 0:00:20.7]} 37... Ne3
{[%clk 0:00:10.5]} 1/2-1/2